Cogmind - Beta 14 @@@ ROGUE MODE // 2024.10.27 @ 13:17:42 Player: lt_nd Result: Self-destructed Performance ------------- Evolutions (1) 500 Regions Visited (3) 600 Robots Destroyed (39) 195 Value Destroyed (838) 838 Prototype IDs (0) 0 Alien Tech Used (0) 0 Bonus (37) 37 TOTAL SCORE: 2170 Bonus ------- High Alert Combat Kills 37 Cogmind --------- Core Integrity 323/400 Matter 108/300 Energy 125/125 System Corruption 0% Temperature Cool (0) Movement Treading (240) Ox1 Location -9/Materials Parts ------- > --- POWER (1) -------- Light Ion Engine > --- PROPULSION (4) --- Light Treads Light Treads Light Treads Light Treads > --- UTILITY (2) ------ Huge Storage Unit Light Armor Plating > --- WEAPON (2) ------- Grenade Launcher Mini Grenade Launcher > --- INVENTORY (25) --- Light Ion Engine Light Ion Engine Improved Ion Engine Reinforced Ion Engine Light Nuclear Core Light Treads Light Treads Combat Airjet Flight Unit Flight Unit Small Storage Unit Structural Scanner Structural Scanner Sensor Array Seismic Detector Tractor Beam Medium Laser Beam Cannon Beam Cannon Light Assault Rifle Light Assault Rifle Peak State ------------ > --- POWER ------------ Light Nuclear Core > --- PROPULSION ------- Light Treads Light Treads Light Treads Light Treads > --- UTILITY ---------- Huge Storage Unit Structural Scanner > --- WEAPON ----------- Grenade Launcher Rocket Launcher > --- INVENTORY -------- Light Ion Engine Light Ion Engine Light Ion Engine Light Nuclear Core Combat Airjet Flight Unit Flight Unit Small Storage Unit Structural Scanner Sensor Array Seismic Detector Tractor Beam Medium Laser Beam Cannon Beam Cannon Light Assault Rifle Light Assault Rifle Mini Grenade Launcher [Rating: 14] Favorites ----------- Power Light Nuclear Core Engine Light Ion Engine Power Core Light Nuclear Core Propulsion Light Treads Treads Light Treads Utility Huge Storage Unit Device Structural Scanner Storage Huge Storage Unit Protection Light Armor Plating Weapon Grenade Launcher Energy Gun Medium Laser Ballistic Gun Light Assault Rifle Launcher Grenade Launcher Build | -11 -10 -10 -9 ------- Run | Yrd Mat Min Mat Slots Evolved 2 | . . . 2 Power . | . . . . Propulsion 2 | . . . 2 Utility . | . . . . Weapon . | . . . . Parts Attached 30 | 7 5 8 10 Power 6 | 1 2 2 1 Engine 4 | 1 2 . 1 Core 2 | . . 2 . Reactor . | . . . . Propulsion 7 | 2 . 2 3 Treads 7 | 2 . 2 3 Leg . | . . . . Wheel . | . . . . Hover . | . . . . Flight . | . . . . Utility 6 | 2 2 1 1 Device 2 | 1 . 1 . Storage 2 | 1 1 . . Processor . | . . . . Hackware . | . . . . Protection 2 | . 1 . 1 Artifact . | . . . . Weapon 11 | 2 1 3 5 Energy Gun 3 | 2 . . 1 Energy Cannon . | . . . . Ballistic Gun 2 | . 1 . 1 Ballistic Cannon . | . . . . Launcher 6 | . . 3 3 Special Weapon . | . . . . Impact Weapon . | . . . . Slashing Weapon . | . . . . Piercing Weapon . | . . . . Special Melee Weapon . | . . . . Unidentified Prototypes . | . . . . Parts Lost 7 | . 1 3 3 Power 3 | . 1 1 1 Propulsion 1 | . . . 1 Utility 1 | . . 1 . Weapon 2 | . . 1 1 Highest Loss Streak 3 | . 1 2 3 To Critical Strikes . | . . . . Average Slot Usage (%) 97 | . 99 95 98 Engine 8 | . 13 3 3 Core 5 | . . 10 7 Treads 29 | . 28 28 42 Device 4 | . 1 6 7 Storage 13 | . 14 14 11 Protection 7 | . 12 3 3 Energy Gun 8 | . 18 . . Ballistic Gun 4 | . 9 . 2 Launcher 14 | . . 27 19 Peak Build Rating 14 | 9 9 12 14 Average Rating 9 | 5 7 10 13 On Entrance 7 | . 9 8 12 Naked Turns . | . . . . Heaviest Build 94 | 12 91 94 93 Greatest Support 80 | 40 40 40 80 Greatest Overweight (x) 2 | . 2 2 1 Average Overweight (x) . | . . 2 1 Largest Inventory Capacity 25 | 8 25 25 25 Average Capacity 18 | 7 11 25 25 Most Carried 21 | 2 10 21 21 Average Carried 11 | 1 6 15 18 Final Capacity 25 | 8 25 25 25 Final Carried 21 | 2 10 20 21 Class Distribution -------------------- 95% | Mutant 4% | Scavenger-Mutant Dominant Class ---------------- Mutant | -10/Materials Mutant | -10/Mines Scavenger-Mutant | -9/Materials Resources | -11 -10 -10 -9 ----------- Run | Yrd Mat Min Mat Matter Collected 700 | 270 73 285 72 Remotely . | . . . . Salvage Created 876 | 123 407 63 283 Parts 74 | 7 27 4 36 Haulers Intercepted . | . . . . Recyclers Shooed . | . . . . Parts Field Recycled . | . . . . Retrieved Matter . | . . . . Parts Self-Destructed . | . . . . Prevented . | . . . . Kills | -11 -10 -10 -9 ------- Run | Yrd Mat Min Mat Combat Hostiles Destroyed 32 | . 9 9 14 Melee 1 | . . 1 . Guns 9 | . 9 . . AOE 22 | . . 8 14 Classes Destroyed 12 | 3 4 1 4 Worker 2 | 1 . . 1 Builder 2 | . . . 2 Tunneler 2 | 2 . . . Recycler 1 | 1 . . . Operator 1 | . . . 1 Watcher 4 | . 3 . 1 Swarmer 13 | . 3 3 7 Grunt 9 | . 5 1 3 Brawler 1 | . . . 1 Sentry 3 | . . . 3 Subdweller 1 | . 1 . . Assembled 5 | . . 5 . Best Kill Streak 15 | 3 3 3 15 Combat Bots Only 12 | . 3 3 12 Max Kills in Single Turn 4 | 1 1 3 4 Gunslinging . | . . . . Exploded 3 | . . 3 3 Melee 1 | . . 1 . Uniques/NPCs Destroyed . | . . . . Combat | -11 -10 -10 -9 -------- Run | Yrd Mat Min Mat Hostile Shots Fired 117 | . 40 35 42 Missed 34 | . 10 9 15 Damage Taken 1247 | . 390 486 371 Core 246 | . 68 101 77 Absorbed by Shields . | . . . . Core Remaining (%) 66 | 100 . 32 . Volleys Fired 70 | 7 41 9 13 Largest 2 | 2 2 2 2 Hottest 90 | 90 90 63 70 Shots Fired 132 | 14 81 18 19 Gun 97 | 14 81 . 2 Cannon . | . . . . Launcher 35 | . . 18 17 Special . | . . . . Kinetic 28 | . 27 . 1 Thermal 69 | 14 54 . 1 Explosive 35 | . . 18 17 Electromagnetic . | . . . . Robot Hit Streak 8 | 4 7 3 8 Robot Miss Streak 4 | 1 4 2 2 Penetration Max . | . . . . Secondary Targets . | . . . . Shots Hit Robots 70 | 8 47 4 11 Core Hits 66 | 5 20 17 24 Critical Kills . | . . . . Critical Parts Destroyed . | . . . . Critical Strikes 2 | . 2 . . Burn 2 | . 2 . . Melee Attacks . | . . . . Impact . | . . . . Slashing . | . . . . Piercing . | . . . . Sneak Attacks . | . . . . Combat Hostiles . | . . . . Follow-up Attacks . | . . . . Damage Inflicted 2258 | 103 535 561 1059 Guns 646 | 102 535 . 9 Cannons . | . . . . Explosions 1588 | . . 538 1050 Melee . | . . . . Ramming 24 | 1 . 23 . Kinetic 102 | . 93 . 9 Thermal 544 | 102 442 . . Explosive 1588 | . . 538 1050 Electromagnetic . | . . . . Impact . | . . . . Slashing . | . . . . Piercing . | . . . . Highest Corruption 5 | . . 5 . Average Corruption 5 | . . 5 . Corruption Purged . | . . . . Corruption Blocked . | . . . . Effects 17 | . . 17 . Message Errors 4 | . . 4 . Matter Fused 4 | . . 4 . Heat Flow Errors 1 | . . 1 . Energy Discharges 2 | . . 2 . Data Loss (minor) 4 | . . 4 . Data Loss (major) 2 | . . 2 . Overload Shots . | . . . . Overflow Damage 42 | . . 18 24 Projectiles . | . . . . Explosions 42 | . . 18 24 Melee . | . . . . Knockbacks . | . . . . Impact . | . . . . Kinetic . | . . . . Secondary . | . . . . Self-Inflicted Damage 156 | . . 76 80 Shots 6 | . . 3 3 Rammed 5 | 1 . 4 . Targets Rammed 6 | 1 . 5 . Kicked . | . . . . Crushed 1 | . . 1 . Highest Temperature 220 | 60 220 131 28 Average Temperature 60 | 29 74 22 11 Received Heat Transfer 258 | . 198 9 51 Siege Activations . | . . . . Robots Corrupted . | . . . . Combat Hostiles . | . . . . Parts Fried . | . . . . Impact Corruptions . | . . . . Robots Melted . | . . . . Combat Hostiles . | . . . . Parts Melted 5 | . 5 . . Heat Transferred 1669 | 273 1396 . . Parts Sabotaged . | . . . . Parts Stolen . | . . . . Parts Stripped . | . . . . Power Chain Reactions . | . . . . Alert | -11 -10 -10 -9 ------- Run | Yrd Mat Min Mat Peak Influence 530 | 20 117 170 530 Initial 45 | . 13 45 22 Average 57 | 6 30 48 281 Maximum Alert Level 2 | . . . 2 Low Security (%) 95 | 100 100 100 44 Level 1 . | . . . 3 Level 2 4 | . . . 51 Level 3 . | . . . . Level 4 . | . . . . Level 5 . | . . . . High Security . | . . . . Max Security . | . . . . Squads Dispatched 2 | . 1 . 1 Investigation . | . . . . Extermination . | . . . . Reinforcement 2 | . 1 . 1 Assault . | . . . . Garrison . | . . . . Intercept . | . . . . Searches Triggered . | . . . . Construction Impeded . | . . . . Haulers Reinforced . | . . . . Active Scanning Responses . | . . . . Cargo Convoy Interrupts . | . . . . Stealth | -11 -10 -10 -9 --------- Run | Yrd Mat Min Mat Distress Signals 5 | . 1 4 . Communications Jammed . | . . . . Distress Signals . | . . . . Times Spotted 45 | . 19 11 15 Peak Tracking Total 9 | . 4 3 9 Tactical Retreats 4 | . 2 2 . Traps | -11 -10 -10 -9 ------- Run | Yrd Mat Min Mat Traps Triggered . | . . . . Indirectly . | . . . . Trap Hack Attempts . | . . . . Triggered . | . . . . Disarmed . | . . . . Reprogrammed . | . . . . Reused . | . . . . Traps Extracted . | . . . . Installed . | . . . . Triggered . | . . . . Machines | -11 -10 -10 -9 ---------- Run | Yrd Mat Min Mat Machines Disabled 4 | . . 1 3 Max in Single Turn 2 | . . 1 2 Machines Repaired . | . . . . Machines Dismantled . | . . . . Machines Sabotaged . | . . . . Overloaded Fab Kills . | . . . . Hacking | -11 -10 -10 -9 --------- Run | Yrd Mat Min Mat Machines Accessed . | . . . . Terminals . | . . . . Fabricators . | . . . . Repair Stations . | . . . . Recycling Units . | . . . . Scanalyzers . | . . . . Garrison Access . | . . . . Total Hacks . | . . . . Successful . | . . . . Failed . | . . . . Catastrophic . | . . . . Database Lockouts . | . . . . Manual . | . . . . Terminals . | . . . . Fabricators . | . . . . Repair Stations . | . . . . Recycling Units . | . . . . Scanalyzers . | . . . . Garrison Access . | . . . . Terminal Hacks . | . . . . Fabricator Hacks . | . . . . Repair Station Hacks . | . . . . Recycling Unit Hacks . | . . . . Scanalyzer . | . . . . Garrison Access Hacks . | . . . . Unauthorized Hacks . | . . . . Terminals . | . . . . Fabricators . | . . . . Repair Stations . | . . . . Recycling Units . | . . . . Scanalyzers . | . . . . Garrison Access . | . . . . Data Cores Recovered . | . . . . Used . | . . . . Hacking Detections . | . . . . Full Trace Events . | . . . . Feedback Events . | . . . . Feedback Blocked . | . . . . Robot Schematics Acquired . | . . . . Robots Built . | . . . . Authchips . | . . . . Time . | . . . . Total Robot Build Rating . | . . . . Part Schematics Acquired . | . . . . Parts Built . | . . . . Authchips . | . . . . Time . | . . . . Total Part Build Rating . | . . . . Parts Repaired . | . . . . Time . | . . . . Parts Recycled . | . . . . Recycled Matter . | . . . . Retrieved Matter . | . . . . Retrieved Components . | . . . . Parts Scanalyzed . | . . . . Part Schematics Acquired . | . . . . Parts Damaged . | . . . . Bothacking | -11 -10 -10 -9 ------------ Run | Yrd Mat Min Mat Used RIF Installer . | . . . . Robots Hacked . | . . . . Non-combat . | . . . . Combat . | . . . . Robot Hacks Applied . | . . . . Relay Couplers Released . | . . . . Fabnet Peak Effective % . | . . . . Robots Rewired . | . . . . Allies Hacked . | . . . . Hacks Repelled . | . . . . Allies | -11 -10 -10 -9 -------- Run | Yrd Mat Min Mat Total Allies . | . . . . Largest Group . | . . . . Highest-Rated Group . | . . . . Highest-Rated Ally . | . . . . Total Orders . | . . . . Ally Attacks . | . . . . Total Damage . | . . . . Kills . | . . . . Allies Corrupted . | . . . . Allies Melted . | . . . . Intel | -11 -10 -10 -9 ------- Run | Yrd Mat Min Mat Robot Analysis Total . | . . . . Derelict Logs Recovered 2 | . . 2 . Drone Launches . | . . . . Drone Recoveries . | . . . . Exploration | -11 -10 -10 -9 ------------- Run | Yrd Mat Min Mat Turns Passed 2605 | 116 1113 1169 207 Spaces Moved 1005 | 52 544 344 65 Core 6 | 6 . . . Treads 999 | 46 544 344 65 Legs . | . . . . Wheels . | . . . . Hover . | . . . . Flight . | . . . . Fastest Speed 50 | 50 160 320 240 Average Speed 227 | 147 174 320 240 Slowest Speed 320 | 160 320 320 240 Overloaded Moves . | . . . . Propulsion Burnouts . | . . . . Robots Hopped . | . . . . Cave-ins Triggered . | . . . . Exploration Rate (%) 43 | 4 75 77 17 Regions Visited 3 Branch Regions 1 Pre-discovered Areas . | . . . . Known Exits Taken . | . . . . Unknown Exits Taken 3 | 1 1 1 . Scrap Searched . | . . . . Spaces Dug 4 | . . . 4 Terrain Destroyed 267 | . . 117 150 Melee . | . . . . Projectile . | . . . . AOE 267 | . . 117 150 Terrain Rammed . | . . . . Walls Destroyed . | . . . . Machines Disabled . | . . . . Actions | -11 -10 -10 -9 --------- Run | Yrd Mat Min Mat Total 1186 | 74 636 382 94 Wait 35 | 5 27 3 . Move 1003 | 52 543 343 65 Hop . | . . . . Pick Up 33 | 3 13 13 4 Fast Attach 11 | 6 1 1 3 Attach 7 | 1 1 2 3 Detach 2 | . 1 . 1 Swap 12 | . 3 5 4 Drop 8 | . 6 1 1 Fire 70 | 7 41 9 13 Melee . | . . . . Ram . | . . . . Kick . | . . . . Crush 5 | . . 5 . Escape Stasis . | . . . . Rewire . | . . . . Trap . | . . . . Miscellaneous . | . . . . Route ------- -11/Scrapyard -10/Materials (discovered 4 exits: [*Mat x2] / [*Min] / [*Sub]) -10/Mines -9/Materials (discovered 2 exits: Min x2) History --------- Turn | Location | Event 16 | -11/Scrapyard | Discovered new exit (range 16) 117 | -11/Scrapyard | Entered Materials 167 | -10/Materials | Discovered new exit (range 15) 301 | -10/Materials | Build established: Mutant 347 | -10/Materials | Discovered new exit (range 14) 617 | -10/Materials | Derelicts attacked the area 801 | -10/Materials | Discovered new exit (range 11) 1091 | -10/Materials | Discovered new exit (range 13) 1230 | -10/Materials | Entered Mines 1319 | -10/Mines | Assembled infested the area 1609 | -10/Mines | Learned Materials emergency access door positions 1776 | -10/Mines | Received a Rocket Launcher from a helpful Derelict 1813 | -10/Mines | Core integrity fell below 50% 2380 | -10/Mines | Discovered new exit (range 6) 2399 | -10/Mines | Entered Materials 2399 | -9/Materials | Evolved 2 slots: Propulsion x2 2400 | -9/Materials | Identified exit to Mines 2524 | -9/Materials | Destroyed 12 combat bots 2569 | -9/Materials | Lost 3 parts (1p1n1w) 2606 | -9/Materials | Self-destructed Last Messages --------------- 02583_ K-01 Serf collects debris. 02584_ U-05 Engineer lays Concrete. 02586_ U-05 Engineer builds a Wall. 02587_ The unstable cave ceiling collapses. 02587_ K-01 Serf collects debris. 02591_ U-05 Engineer lays Concrete. 02591_ Acquired 6 matter. 02592_ U-05 Engineer lays Concrete. 02593_ U-05 Engineer builds a Wall. 02594_ K-01 Serf collects debris. 02598_ U-05 Engineer lays Concrete. 02598_ Acquired Rnf. Ion Engine. 02599_ U-05 Engineer lays Concrete. 02600_ U-05 Engineer builds a Wall. 02601_ The unstable cave ceiling collapses. 02602_ K-01 Serf collects debris. 02602_ Acquired Lgt. Treads. 02603_ G-34 Mercenary destroyed. 02604_ K-01 Serf collects debris. 02605_ U-05 Engineer lays Concrete. Map ----- +----------------------------------------------------+ | ?????????????????????????????????????????????????? | | ??????????????????????????????# #??????????????? | | ?????????????????????????????# ??????????????? | | ????????????????????????????? ??????????????? | | ???????>????????????????????? % ??????????????? | | ?????????????????????????????? [ ??????????????? | | ?????????????????????????????? ????####??????? | | ??????????????????????????#???# #???? #??????? | | ?????????????????????????? ???# #???? #? ??? | | ????????????????????????+ ??# #???# #?""" "" | | ????????????????????????# " # #???# + """ "? | | ????????????????????? ??#[ "" # #???# # """ ?? | | ?????????????????? ??# "" # #???# # ??? | | ???????????????? ??# """ # ##### ## ##### | | ????????????????]** ?# "" # | | ?????????????????* g= ?# "" + # | | ?????????????????? % ?# """ ! # | | ??????????????????# # """ #### [# # | | ??????????????????? # " * #### # # | | ???????????????????? # u # ## # # | | ????????????????????# ###### ### # # | | ???????????????????## ##### # | | ???????????????????# # | | ???????????????????# | | ???????????????????+ [*% = ## | | ???????????????????# !@%/k # # # | | ???????????????????# ##= ## | | ???????????????????## *% # ## # # ######? | | ????????????????????# ?## ### # * ## ## | | ????????????????????# ? #?##### %= ## ## | | ????????????????????# ? # ### ## | | ????????????????????# # ??" ## #?# ## | | ????????????????????##+### #?"T" ## #?# ## | | ?????????????????????????# #? ## #?# ## | | ?????????????????????????# # != ?## ### #? | | ?????????????????????????+ + != ?# ###+### | | ?????????????????????????# # == ?# | | ?????????????????????????## # ??# T | | ??????????????????????????? # ???# | | ??????????????????????????? ????????# ####### | | ???????????????????????????##????????#######?????? | | ?????????????????????????????????????????????????? | | ?????????????????????????????????????????????????? | | ?????????????????????????????????????????????????? | | | | | | | | | | | | | +----------------------------------------------------+ Best States ------------- Heat Dissipation 28 Energy Generation 14 Energy Capacity 250 Matter Stores 300 Matter Capacity 300 Sight Range 16 Terrain Scan Density 10 Armor Coverage 150 Evasion (%) 40 Recoil Reduction 4 Item Schematics ----------------- None Robot Schematics ------------------ None Fabricated ------------ Nothing Alien Tech Used ----------------- None Achievements -------------- Remodeling Challenges ------------ None Game ------ Seed MappingBehemothInverter Manual? 0 Play Time 00:19:59 Cumulative 5.3 hours Start 2024.09.08 @ 13:13:44 End 2024.10.27 @ 13:17:42 Sessions 3 Manual Loads 0 Difficulty Rogue Special Mode None Game No. 13 Rogue 13 Adventurer 0 Explorer 0 Win Type - Total 0 Types 0/0/0/0/0/0/0/0/0 Lore% 6 Gallery% 6 Achievement% 8 Wizard Run 0 Options --------- Layout 1 ASCII 0 Keyboard 1 Movement Numpad Keybinds 0 Fullscreen 1 Font 24/Smallcaps Map View 50x35 Zoom Use 0% Tactical HUD 1 Map Filters NONE Filters NONE Steam 1 RUN: 5bbc7b08-61b3-498a-8952-5ba6641a6d00